Cogmind - Beta 10.2 @@@ ROGUE MODE // 2020.10.31 @ 01:14:45 Player: Wiperd Result: Destroyed by G-47 Trooper with Particle Gun Performance ------------- Evolutions (0) 0 Regions Visited (1) 200 Robots Destroyed (9) 45 Value Destroyed (154) 154 Prototype IDs (0) 0 Alien Tech Used (0) 0 Bonus (0) 0 TOTAL SCORE: 399 Bonus ------- None Cogmind --------- Core Integrity 0/250 Matter 300/300 Energy 100/100 System Corruption 0% Temperature Cool (9) Movement Core (100) Ox1 Location -10/Materials Parts ------- > --- POWER (1) -------- (None) > --- PROPULSION (2) --- (None) > --- UTILITY (2) ------ Small Storage Unit > --- WEAPON (2) ------- (None) > --- INVENTORY (6) ---- Aluminum Leg Peak State ------------ > --- POWER ------------ Light Ion Engine > --- PROPULSION ------- Wheel Wheel > --- UTILITY ---------- Heat Sink Small Storage Unit > --- WEAPON ----------- Medium Laser Small Laser > --- INVENTORY -------- Ion Engine Aluminum Leg Mining Laser [Rating: 7] Favorites ----------- Power Light Ion Engine Engine Light Ion Engine Propulsion Wheel Wheel Wheel Utility Small Storage Unit Device Heat Sink Storage Small Storage Unit Weapon Small Laser Energy Gun Small Laser Special Weapon Mining Laser Build | -11 -10 ------- Run | Scr Mat Slots Evolved . | . . Power . | . . Propulsion . | . . Utility . | . . Weapon . | . . Parts Attached 11 | 5 6 Power 2 | 1 1 Engine 2 | 1 1 Core . | . . Reactor . | . . Propulsion 3 | 2 1 Treads . | . . Leg . | . . Wheel 3 | 2 1 Hover . | . . Flight . | . . Utility 2 | . 2 Device 1 | . 1 Storage 1 | . 1 Processor . | . . Hackware . | . . Protection . | . . Artifact . | . . Weapon 4 | 2 2 Energy Gun 3 | 2 1 Energy Cannon . | . . Ballistic Gun . | . . Ballistic Cannon . | . . Launcher . | . . Special Weapon 1 | . 1 Impact Weapon . | . . Slashing Weapon . | . . Piercing Weapon . | . . Special Melee Weapon . | . . Unidentified Prototypes . | . . Parts Lost 9 | . 9 Power 2 | . 2 Propulsion 3 | . 3 Utility 1 | . 1 Weapon 3 | . 3 Highest Loss Streak 6 | . 6 Average Slot Usage (%) 83 | . 83 Engine 10 | . 10 Wheel 24 | . 24 Device 10 | . 10 Storage 11 | . 11 Energy Gun 23 | . 23 Special Weapon 1 | . 1 Naked Turns . | . . Heaviest Build 12 | 6 12 Greatest Support 20 | 20 20 Greatest Overweight (x) 3 | . 3 Average Overweight (x) . | . . Largest Inventory Capacity 6 | 4 6 Average Capacity 5 | 4 5 Most Carried 5 | 4 5 Average Carried 2 | . 2 Final Capacity 6 | 4 6 Final Carried 3 | 3 1 Class Distribution -------------------- 90% | Mutant 9% | Scavenger-Mutant Dominant Class ---------------- Mutant | -10/Materials Resources | -11 -10 ----------- Run | Scr Mat Matter Collected 275 | 250 25 Remotely . | . . Salvage Created 269 | 67 202 Parts 18 | 6 12 Haulers Intercepted . | . . Recyclers Shooed . | . . Parts Field Recycled . | . . Retrieved Matter . | . . Parts Self-Destructed . | . . Prevented . | . . Kills | -11 -10 ------- Run | Scr Mat Combat Hostiles Destroyed 4 | 1 3 Guns 4 | 1 3 Classes Destroyed 6 | 2 4 Worker 2 | 1 1 Builder 1 | . 1 Recycler 1 | . 1 Watcher 1 | . 1 Swarmer 1 | . 1 Grunt 3 | 1 2 Best Kill Streak 3 | 2 3 Combat Bots Only 2 | 1 2 Max Kills in Single Turn 1 | 1 1 Gunslinging . | . . Exploded . | . . Melee . | . . Uniques/NPCs Destroyed . | . . Combat | -11 -10 -------- Run | Scr Mat Damage Taken 669 | 20 649 Core 254 | 10 244 Absorbed by Shields . | . . Core Remaining (%) 96 | 96 . Volleys Fired 28 | 4 24 Largest 2 | 2 2 Hottest 140 | 90 140 Shots Fired 50 | 8 42 Gun 45 | 8 37 Cannon . | . . Launcher . | . . Special 5 | . 5 Kinetic . | . . Thermal 50 | 8 42 Explosive . | . . Electromagnetic . | . . Robot Hit Streak 8 | 2 8 Robot Miss Streak 2 | 2 2 Penetration Max . | . . Secondary Targets 1 | . 1 Max Gunslinging Chain 1 | . 1 Shots Hit Robots 32 | 5 27 Core Hits 17 | 3 14 Critical Hits . | . . Critical Kills . | . . Critical Parts Destroyed . | . . Melee Attacks . | . . Impact . | . . Slashing . | . . Piercing . | . . Sneak Attacks . | . . Combat Hostiles . | . . Follow-up Attacks . | . . Damage Inflicted 413 | 59 354 Guns 358 | 59 299 Cannons . | . . Explosions . | . . Melee . | . . Ramming 7 | . 7 Kinetic . | . . Thermal 406 | 59 347 Explosive . | . . Electromagnetic . | . . Impact . | . . Slashing . | . . Piercing . | . . Highest Corruption . | . . Average Corruption . | . . Corruption Purged . | . . Overload Shots . | . . Overflow Damage . | . . Projectiles . | . . Explosions . | . . Melee . | . . Knockbacks . | . . Impact . | . . Kinetic . | . . Secondary . | . . Self-Inflicted Damage 3 | . 3 Shots . | . . Rammed 2 | . 2 Targets Rammed 2 | . 2 Kicked . | . . Crushed . | . . Highest Temperature 78 | 72 78 Average Temperature 31 | 29 32 Received Heat Transfer 219 | 12 207 Siege Activations . | . . Robots Corrupted . | . . Combat Hostiles . | . . Parts Fried . | . . Impact Corruptions . | . . Robots Melted . | . . Combat Hostiles . | . . Parts Melted 1 | . 1 Heat Transferred 995 | 161 834 Parts Sabotaged . | . . Parts Stolen . | . . Parts Stripped . | . . Power Chain Reactions . | . . Missiles Intercepted . | . . Alert | -11 -10 ------- Run | Scr Mat Peak Influence 108 | 25 108 Initial 16 | . 16 Average 26 | 5 31 Maximum Alert Level . | . . Low Security (%) 100 | 100 100 Level 1 . | . . Level 2 . | . . Level 3 . | . . Level 4 . | . . Level 5 . | . . High Security . | . . Max Security . | . . Squads Dispatched . | . . Investigation . | . . Extermination . | . . Reinforcement . | . . Assault . | . . Garrison . | . . Intercept . | . . Construction Impeded . | . . Haulers Reinforced . | . . Stealth | -11 -10 --------- Run | Scr Mat Distress Signals . | . . Communications Jammed . | . . Distress Signals . | . . Times Spotted 10 | 1 9 Peak Tracking Total 7 | 1 7 Tactical Retreats . | . . Traps | -11 -10 ------- Run | Scr Mat Traps Triggered . | . . Indirectly . | . . Trap Hack Attempts . | . . Triggered . | . . Disarmed . | . . Reprogrammed . | . . Reused . | . . Traps Extracted . | . . Installed . | . . Triggered . | . . Machines | -11 -10 ---------- Run | Scr Mat Machines Disabled . | . . Max in Single Turn . | . . Machines Sabotaged . | . . Garrisons Compromised . | . . Overloaded Fab Kills . | . . Fab Network Shutdowns . | . . Hacking | -11 -10 --------- Run | Scr Mat Machines Accessed . | . . Terminals . | . . Fabricators . | . . Repair Stations . | . . Recycling Units . | . . Scanalyzers . | . . Garrison Access . | . . Total Hacks . | . . Successful . | . . Failed . | . . Catastrophic . | . . Database Lockouts . | . . Manual 1 | . 1 Terminals . | . . Fabricators . | . . Repair Stations . | . . Recycling Units . | . . Scanalyzers . | . . Garrison Access . | . . Terminal Hacks . | . . Fabricator Hacks . | . . Repair Station Hacks . | . . Recycling Unit Hacks . | . . Scanalyzer . | . . Garrison Access Hacks . | . . Unauthorized Hacks . | . . Terminals . | . . Fabricators . | . . Repair Stations . | . . Recycling Units . | . . Scanalyzers . | . . Garrison Access . | . . Data Cores Recovered . | . . Used . | . . Hacking Detections 1 | . 1 Full Trace Events . | . . Feedback Events . | . . Feedback Blocked . | . . Robot Schematics Acquired . | . . Robots Built . | . . Matter . | . . Time . | . . Total Robot Build Rating . | . . Part Schematics Acquired . | . . Parts Built . | . . Matter . | . . Time . | . . Total Part Build Rating . | . . Parts Repaired . | . . Time . | . . Parts Recycled . | . . Recycled Matter . | . . Retrieved Matter . | . . Retrieved Components . | . . Parts Scanalyzed . | . . Part Schematics Acquired . | . . Parts Damaged . | . . Bothacking | -11 -10 ------------ Run | Scr Mat Used RIF Installer . | . . Robots Hacked . | . . Non-combat . | . . Combat . | . . Robot Hacks Applied . | . . Relay Couplers Released . | . . Robots Rewired . | . . Allies Hacked . | . . Hacks Repelled . | . . Allies | -11 -10 -------- Run | Scr Mat Total Allies . | . . Largest Group . | . . Highest-Rated Group . | . . Highest-Rated Ally . | . . Total Orders . | . . Ally Attacks . | . . Total Damage . | . . Kills . | . . Allies Corrupted . | . . Allies Melted . | . . Intel | -11 -10 ------- Run | Scr Mat Robot Analysis Total . | . . Derelict Logs Recovered . | . . Drone Launches . | . . Drone Recoveries . | . . Exploration | -11 -10 ------------- Run | Scr Mat Turns Passed 421 | 71 350 Spaces Moved 381 | 71 310 Core 56 | 34 22 Treads . | . . Legs . | . . Wheels 325 | 37 288 Hover . | . . Flight . | . . Fastest Speed 50 | 50 80 Average Speed 79 | 65 82 Slowest Speed 200 | 80 200 Overloaded Moves . | . . Propulsion Burnouts . | . . Robots Hopped . | . . Cave-ins Triggered . | . . Exploration Rate (%) 23 | 6 41 Regions Visited 1 Branch Regions . Pre-discovered Areas . | . . Known Exits Taken . | . . Unknown Exits Taken 1 | 1 . Scrap Searched . | . . Spaces Dug . | . . Terrain Destroyed 2 | . 2 Melee . | . . Projectile 2 | . 2 AOE . | . . Terrain Rammed . | . . Walls Destroyed . | . . Machines Disabled . | . . Actions | -11 -10 --------- Run | Scr Mat Total 439 | 87 352 Wait 5 | . 5 Move 380 | 70 310 Hop . | . . Pick Up 12 | 8 4 Fast Attach . | . . Attach 10 | 5 5 Detach . | . . Swap 1 | . 1 Drop 1 | . 1 Fire 28 | 4 24 Melee . | . . Ram 2 | . 2 Kick . | . . Crush . | . . Escape Stasis . | . . Rewire . | . . Trap . | . . Miscellaneous . | . . Route ------- -11/Scrapyard -10/Materials (discovered 1 exit: [*Mat]) History --------- Turn | Location | Event 2 | -11/Scrapyard | Met Revision 17 52 | -11/Scrapyard | Discovered new exit (range 8) 72 | -11/Scrapyard | Entered Materials 153 | -10/Materials | Discovered new exit (range 9) 301 | -10/Materials | Build established: Mutant 342 | -10/Materials | Lost 3 parts (1p1n1w) 399 | -10/Materials | Core integrity fell below 50% 411 | -10/Materials | Core integrity fell below 20% 422 | -10/Materials | Destroyed by G-47 Trooper with Particle Gun Last Messages --------------- K-01 Serf collects debris. W-16 Scout destroyed. K-01 Serf collects debris. Wheel destroyed. S-10 Pest destroyed. K-01 Serf collects debris. Sml. Laser destroyed. Mining Laser destroyed. Wheel destroyed. K-01 Serf destroyed. Ion Engine destroyed. K-01 Serf collects debris. R-06 Scavenger collects Visual Processing Unit. U-05 Engineer lays Concrete. Slammed into S-10 Pest. Ramming works as a last resort when unarmed or blocked, but can have serious negative consequences. Slammed into S-10 Pest. Heat Sink destroyed. G-34 Mercenary destroyed. Map ----- +----------------------------------------------------+ | ???????????????????????????????????????????????# | | ???????????????????????????????????????????????# | | ???????????????????????????????????????????????# | | ???????????????????????????????????????????????# | | ???????????????????????????????????????????????# | | ???????????????????????????????????????????????# | | ???????????????????????????????????????????????# | | ???????????????????????????????????????????????# | | ???????????????????????????????????????????????# | | ???????????????????????????????????????????????# | | ???????????????????????????????????????????????# | | ????????????????? ?????????????????????????????# | | ????????????????? ????????????????????????????# | | ???????????????##/##???????#################???# | | ??????????????? #???????# # #???# | | ??????????????" #???????# """"" # """ #??## | | ??????????????" #???????# """"" # """ #??# | | ??????????????" #???????# """"" # """ #### | | ???????????# #?####### ??# + | | ????????????""" ??# ###+######+######### | | ????????????""" ??# s #?# | | ?????????????"" ???# % #?#### | | ????????????? ???# s% #????? | | ??????????????!! ????# ############## #????? | | ??????????????=%=????## ##??########### #????? | | ??????????????#/#?????# %@#???# # #????? | | ??????????????#!#?????# g #???# =! """ # ####?? | | ??????????????# #?????# #???# = """ # ! ##? | | ??????????????# #?????# #???# """ # !#? | | ????########### #?????# k #???# """ # !#? | | ????# # ###??##r ##??# """ + !#? | | ????# #[#"#### #??# # !#? | | ????# " %==%! #??# # !!##? | | ????# %/%! ! #??########### ####?? | | ????# !!! #!%= #???????????# ##### | | ????# !! ## ##### #???????????# | | ????# !! ## #?###############?????# T | | ????# ## #?# #?# ####### | | ????############ ### ###! ###+# | | ???????????????# ############# | | ???????????????##### ### #???????????# | | ???????????????????# #?# #???????????# """ | | ???????????????????#######?#######???????????# """ | | ?????????????????????????????????????????????# """ | | ?????????????????????????????????????????????# | | ?????????????????????????????????????????????##### | | ?????????????????????????????????????????????????? | | ?????????????????????????????????????????????????? | | | | | +----------------------------------------------------+ Best States ------------- Heat Dissipation 35 Energy Generation 10 Energy Capacity 250 Matter Stores 300 Matter Capacity 300 Sight Range 16 Terrain Scan Density 10 Evasion (%) 50 Item Schematics ----------------- None Robot Schematics ------------------ None Fabricated ------------ Nothing Alien Tech Used ----------------- None Achievements -------------- None Challenges ------------ None Game ------ Seed SurveybotLobotomyModule Manual? 0 Play Time 00:10:34 Cumulative 0.8 hours Start 2020.10.31 @ 01:06:23 End 2020.10.31 @ 01:14:45 Sessions 1 Manual Loads 0 Difficulty Rogue Special Mode None Game No. 2 Rogue 2 Adventurer 0 Explorer 0 Win Type - Total 0 Types 0/0/0/0/0/0/0/0/0 Lore% 1 Gallery% 1 Achievement% 0 Wizard Run 0 Options --------- ASCII 0 Keyboard 0 Movement Mouse Keybinds 0 Fullscreen 1 Font 18/TerminusBold Map View 76x50 Tactical HUD 0 Map Filters NONE Filters NONE Steam 1 RUN: c69f7f85-226a-4a5b-9858-5e113496f330